Cogmind - Beta 9.4 @@@ ROGUE MODE // 2020.02.15 @ 15:22:46 Player: redd Result: Destroyed by G-34 Mercenary with Small Laser Performance ------------- Evolutions (1) 500 Regions Visited (2) 400 Robots Destroyed (64) 320 Value Destroyed (1604) 1604 Prototype IDs (0) 0 Alien Tech Used (0) 0 Bonus (8) 8 TOTAL SCORE: 2832 Bonus ------- High Alert Combat Kills 8 Cogmind --------- Core Integrity 0/400 Matter 243/300 Energy 265/265 System Corruption 0% Temperature Cool (6) Movement Rolling (100) Location -9/Materials Parts ------- > --- POWER (1) -------- Improved Ion Engine > --- PROPULSION (2) --- Compact Wheel Compact Wheel > --- UTILITY (4) ------ Visual Processing Unit Improved Targeting Computer Core Shielding > --- WEAPON (2) ------- Heavy Assault Rifle > --- INVENTORY (4) ---- Ion Engine Light Treads Small Laser Datajack Peak State ------------ > --- POWER ------------ Light Nuclear Core > --- PROPULSION ------- Light Treads Light Treads > --- UTILITY ---------- Improved Heat Sink Large Storage Unit Improved Targeting Computer Shield Generator > --- WEAPON ----------- Particle Gun Particle Gun > --- INVENTORY -------- Ion Engine Light Treads Visual Processing Unit Signal Interpreter Core Shielding Shield Generator Small Laser Assault Rifle Datajack [Rating: 18] Favorites ----------- Power Ion Engine Engine Ion Engine Power Core Light Nuclear Core Propulsion Light Treads Treads Light Treads Wheel Compact Wheel Utility Shield Generator Device Shield Generator Storage Large Storage Unit Processor Improved Targeting Computer Protection Core Shielding Weapon Assault Rifle Energy Gun Particle Gun Ballistic Gun Assault Rifle Special Melee Weapon Datajack Build | -11 -10 -9 ------- Run | Scr Mat Mat Slots Evolved 2 | . . 2 Power . | . . . Propulsion . | . . . Utility 2 | . . 2 Weapon . | . . . Parts Attached 62 | 5 18 39 Power 13 | 1 3 9 Engine 11 | 1 2 8 Core 2 | . 1 1 Reactor . | . . . Propulsion 13 | 2 3 8 Treads 9 | 2 3 4 Leg . | . . . Wheel 4 | . . 4 Hover . | . . . Flight . | . . . Utility 16 | 1 5 10 Device 7 | . 3 4 Storage 3 | 1 2 . Processor 3 | . . 3 Hackware . | . . . Protection 3 | . . 3 Artifact . | . . . Weapon 20 | 1 7 12 Energy Gun 7 | . 2 5 Energy Cannon . | . . . Ballistic Gun 11 | 1 3 7 Ballistic Cannon . | . . . Launcher . | . . . Special Weapon . | . . . Impact Weapon . | . . . Slashing Weapon . | . . . Piercing Weapon . | . . . Special Melee Weapon 2 | . 2 . Unidentified Prototypes . | . . . Parts Lost 22 | . 4 18 Power 3 | . 1 2 Propulsion 4 | . . 4 Utility 5 | . 1 4 Weapon 10 | . 2 8 Highest Loss Streak 6 | . 1 6 Average Slot Usage (%) 95 | . 98 91 Engine 8 | . 8 8 Core 3 | . 5 2 Treads 20 | . 28 11 Wheel 3 | . . 7 Device 12 | . 12 11 Storage 12 | . 14 10 Processor 6 | . . 13 Protection 3 | . . 7 Energy Gun 4 | . . 8 Ballistic Gun 18 | . 26 8 Naked Turns . | . . . Heaviest Build 32 | 11 26 32 Greatest Support 40 | 40 40 40 Greatest Overweight (x) 8 | . . 8 Average Overweight (x) . | . . . Largest Inventory Capacity 10 | 6 10 10 Average Capacity 9 | 5 8 9 Most Carried 10 | 2 10 10 Average Carried 7 | 1 6 8 Final Capacity 10 | 6 10 4 Final Carried 9 | 2 9 4 Class Distribution -------------------- 67% | Mutant 32% | Scavenger-Mutant Dominant Class ---------------- Mutant | -10/Materials Scavenger-Mutant | -9/Materials Resources | -11 -10 -9 ----------- Run | Scr Mat Mat Matter Collected 1416 | 219 628 569 Remotely . | . . . Salvage Created 2120 | . 762 1358 Parts 147 | . 38 109 Haulers Intercepted 1 | . . 1 Recyclers Shooed 1 | . . 1 Parts Field Recycled . | . . . Retrieved Matter . | . . . Parts Self-Destructed . | . . . Prevented . | . . . Kills | -11 -10 -9 ------- Run | Scr Mat Mat Combat Hostiles Destroyed 51 | . 17 34 Guns 49 | . 17 32 AOE 2 | . . 2 Classes Destroyed 9 | . 6 3 Worker 1 | . 1 . Builder 2 | . . 2 Hauler 1 | . . 1 Recycler 3 | . 1 2 Operator 2 | . 1 1 Watcher 4 | . 1 3 Swarmer 17 | . 3 14 Grunt 28 | . 14 14 Sentry 6 | . . 6 Best Kill Streak 8 | . 3 8 Combat Bots Only 6 | . 3 6 Max Kills in Single Turn 3 | . 1 3 Gunslinging . | . . . Exploded 2 | . . 2 Melee . | . . . Uniques/NPCs Destroyed . | . . . Combat | -11 -10 -9 -------- Run | Scr Mat Mat Damage Taken 2820 | . 858 1962 Core 532 | . 132 400 Absorbed by Shields 581 | . 256 325 Core Remaining (%) 73 | 100 47 . Volleys Fired 231 | . 91 140 Largest 2 | . 2 2 Hottest 130 | . 40 130 Shots Fired 373 | . 163 210 Gun 373 | . 163 210 Cannon . | . . . Launcher . | . . . Special . | . . . Kinetic 290 | . 163 127 Thermal 83 | . . 83 Explosive . | . . . Electromagnetic . | . . . Robot Hit Streak 10 | . 10 8 Robot Miss Streak 4 | . 4 4 Penetration Max . | . . . Secondary Targets 3 | . . 3 Max Gunslinging Chain 1 | . . 1 Shots Hit Robots 236 | . 113 123 Core Hits 99 | . 36 63 Critical Hits 1 | . 1 . Critical Kills . | . . . Critical Parts Destroyed 1 | . 1 . Melee Attacks 1 | . 1 . Impact . | . . . Slashing . | . . . Piercing . | . . . Sneak Attacks . | . . . Combat Hostiles . | . . . Follow-up Attacks . | . . . Damage Inflicted 3289 | . 1273 2016 Guns 3094 | . 1273 1821 Cannons . | . . . Explosions 195 | . . 195 Melee . | . . . Ramming . | . . . Kinetic 2242 | . 1273 969 Thermal 852 | . . 852 Explosive 195 | . . 195 Electromagnetic . | . . . Impact . | . . . Slashing . | . . . Piercing . | . . . Highest Corruption . | . . . Average Corruption . | . . . Corruption Purged . | . . . Overload Shots . | . . . Overflow Damage 31 | . . 31 Projectiles . | . . . Explosions 31 | . . 31 Melee . | . . . Knockbacks . | . . . Impact . | . . . Kinetic . | . . . Secondary . | . . . Self-Inflicted Damage 83 | . . 83 Shots 1 | . . 1 Rammed . | . . . Targets Rammed . | . . . Kicked . | . . . Crushed . | . . . Highest Temperature 331 | . 10 331 Average Temperature 91 | . 3 102 Received Heat Transfer 878 | . 393 485 Effects 3 | . . 3 Energy Bleed 1 | . . 1 Interference 2 | . . 2 Siege Activations . | . . . Robots Corrupted . | . . . Combat Hostiles . | . . . Parts Fried . | . . . Impact Corruptions . | . . . Robots Melted . | . . . Combat Hostiles . | . . . Parts Melted 4 | . . 4 Heat Transferred 1975 | . . 1975 Parts Sabotaged . | . . . Parts Stolen . | . . . Parts Stripped . | . . . Power Chain Reactions . | . . . Missiles Intercepted . | . . . Alert | -11 -10 -9 ------- Run | Scr Mat Mat Peak Influence 409 | . 171 409 Average Influence 159 | . 78 256 Maximum Alert Level 2 | . . 2 Low Security (%) 67 | 100 100 29 Level 1 32 | . . 69 Level 2 . | . . . Level 3 . | . . . Level 4 . | . . . Level 5 . | . . . High Security . | . . . Max Security . | . . . Squads Dispatched 7 | . 3 4 Investigation 5 | . 2 3 Extermination . | . . . Reinforcement 2 | . 1 1 Assault . | . . . Garrison . | . . . Intercept . | . . . Construction Impeded . | . . . Haulers Reinforced . | . . . Stealth | -11 -10 -9 --------- Run | Scr Mat Mat Distress Signals 5 | . 2 3 Communications Jammed . | . . . Distress Signals . | . . . Times Spotted 80 | . 30 50 Peak Tracking Total 7 | . 6 7 Tactical Retreats 3 | . 1 2 Traps | -11 -10 -9 ------- Run | Scr Mat Mat Traps Triggered . | . . . Indirectly . | . . . Trap Hack Attempts . | . . . Triggered . | . . . Disarmed . | . . . Reprogrammed . | . . . Reused . | . . . Traps Extracted . | . . . Installed . | . . . Triggered . | . . . Machines | -11 -10 -9 ---------- Run | Scr Mat Mat Machines Disabled 2 | . . 2 Max in Single Turn 1 | . . 1 Machines Sabotaged . | . . . Garrisons Compromised . | . . . Overloaded Fab Kills . | . . . Fab Network Shutdowns . | . . . Hacking | -11 -10 -9 --------- Run | Scr Mat Mat Machines Accessed 16 | . 7 9 Terminals 11 | . 6 5 Fabricators . | . . . Repair Stations 3 | . 1 2 Recycling Units 1 | . . 1 Scanalyzers 1 | . . 1 Garrison Access . | . . . Total Hacks 66 | . 18 48 Successful 51 | . 12 39 Failed 15 | . 6 9 Catastrophic 2 | . 1 1 Database Lockouts . | . . . Manual 28 | . 15 13 Terminals 30 | . 15 15 Fabricators . | . . . Repair Stations 15 | . 3 12 Recycling Units 2 | . . 2 Scanalyzers 19 | . . 19 Garrison Access . | . . . Terminal Hacks 1 | . . 1 Repair Station Index 1 | . . 1 Fabricator Hacks . | . . . Repair Station Hacks 13 | . 3 10 Scan Component 7 | . 2 5 Repair 6 | . 1 5 Recycling Unit Hacks 2 | . . 2 Report Inventory 1 | . . 1 Retrieve Components 1 | . . 1 Scanalyzer 18 | . . 18 Insert Component 9 | . . 9 Analyze 9 | . . 9 Garrison Access Hacks . | . . . Unauthorized Hacks 42 | . 24 18 Terminals 17 | . 9 8 Track 8 | . 4 4 Botnet 9 | . 5 4 Fabricators . | . . . Repair Stations . | . . . Recycling Units . | . . . Scanalyzers . | . . . Garrison Access . | . . . Data Cores Recovered . | . . . Used . | . . . Hacking Detections 16 | . 7 9 Full Trace Events 9 | . 5 4 Feedback Events . | . . . Feedback Blocked . | . . . Robot Schematics Acquired . | . . . Robots Built . | . . . Matter . | . . . Time . | . . . Total Robot Build Rating . | . . . Part Schematics Acquired 9 | . . 9 Parts Built . | . . . Matter . | . . . Time . | . . . Total Part Build Rating . | . . . Parts Repaired 6 | . 1 5 Time 142 | . 13 129 Parts Recycled . | . . . Recycled Matter . | . . . Retrieved Matter . | . . . Retrieved Components 9 | . . 9 Parts Scanalyzed 9 | . . 9 Part Schematics Acquired 9 | . . 9 Parts Damaged . | . . . Bothacking | -11 -10 -9 ------------ Run | Scr Mat Mat Used RIF Installer . | . . . Robots Hacked 1 | . 1 . Non-combat . | . . . Combat 1 | . 1 . Robot Hacks Applied 1 | . 1 . parse_system 1 | . 1 . Relay Couplers Released . | . . . Robots Rewired . | . . . Allies Hacked . | . . . Hacks Repelled . | . . . Allies | -11 -10 -9 -------- Run | Scr Mat Mat Total Allies . | . . . Largest Group . | . . . Highest-Rated Group . | . . . Highest-Rated Ally . | . . . Total Orders . | . . . Ally Attacks . | . . . Total Damage . | . . . Kills . | . . . Allies Corrupted . | . . . Allies Melted . | . . . Intel | -11 -10 -9 ------- Run | Scr Mat Mat Robot Analysis Total . | . . . Derelict Logs Recovered . | . . . Drone Launches . | . . . Drone Recoveries . | . . . Exploration | -11 -10 -9 ------------- Run | Scr Mat Mat Turns Passed 3449 | 59 1797 1593 Spaces Moved 1551 | 33 802 716 Core 7 | 4 . 3 Treads 1237 | 29 802 406 Legs . | . . . Wheels 307 | . . 307 Hover . | . . . Flight . | . . . Fastest Speed 50 | 50 160 100 Average Speed 149 | 146 160 137 Slowest Speed 450 | 160 160 450 Overloaded Moves . | . . . Propulsion Burnouts . | . . . Robots Hopped . | . . . Cave-ins Triggered . | . . . Exploration Rate (%) 48 | 4 91 51 Regions Visited 2 Branch Regions . Pre-discovered Areas . | . . . Known Exits Taken . | . . . Unknown Exits Taken 2 | 1 1 . Scrap Searched . | . . . Spaces Dug . | . . . Terrain Destroyed 41 | . . 41 Melee . | . . . Projectile . | . . . AOE 41 | . . 41 Actions | -11 -10 -9 --------- Run | Scr Mat Mat Total 2319 | 44 1156 1119 Wait 405 | . 215 190 Move 1549 | 32 801 716 Hop . | . . . Pick Up 52 | 7 20 25 Fast Attach 3 | . 1 2 Attach 36 | 5 8 23 Detach 2 | . 1 1 Swap 23 | . 9 14 Drop 17 | . 9 8 Fire 231 | . 91 140 Melee 1 | . 1 . Ram . | . . . Kick . | . . . Crush . | . . . Escape Stasis . | . . . Rewire . | . . . Trap . | . . . Miscellaneous . | . . . Route ------- -11/Scrapyard -10/Materials (discovered 4 exits: *Mat x3 / [*Min]) -9/Materials (discovered 3 exits: [*Mat x2] / [*Sto]) History --------- Turn | Location | Event 18 | -11/Scrapyard | Discovered new exit (range 16) 60 | -11/Scrapyard | Entered Materials 268 | -10/Materials | Discovered new exit (range 3) 313 | -10/Materials | Discovered new exit (range 16) 324 | -10/Materials | Build established: Mutant 754 | -10/Materials | Discovered new exit (range 4) 1176 | -10/Materials | Repaired Assault Rifle 1733 | -10/Materials | Core integrity fell below 50% 1764 | -10/Materials | Discovered new exit (range 3) 1857 | -10/Materials | Entered another Materials area 1857 | -9/Materials | Evolved 2 slots: Utility x2 2038 | -9/Materials | Discovered new exit (range 4) 2613 | -9/Materials | Discovered new exit (range 11) 2813 | -9/Materials | Core integrity fell below 50% 2861 | -9/Materials | Lost 6 parts (1p1n2u2w) 3030 | -9/Materials | Repaired Com. Wheel 3120 | -9/Materials | Build established: Scavenger-Mutant 3180 | -9/Materials | Discovered new exit (range 10) 3258 | -9/Materials | Core integrity fell below 20% 3352 | -9/Materials | Repaired Hvy. Assault Rifle 3381 | -9/Materials | Repaired Core Shielding 3415 | -9/Materials | Repaired Imp. Ion Engine 3443 | -9/Materials | Repaired Lrg. Storage Unit 3450 | -9/Materials | Destroyed by G-34 Mercenary with Small Laser Last Messages --------------- Time: 32 >>Repair Repairing Imp. Ion Engine... ETC: 32 03415_ Repair station completes Imp. Ion Engine repairs. 03415_ Acquired Imp. Ion Engine. 03417_ Connecting with Repair Station... >>Scan(Lrg. Storage Unit) Scanning Lrg. Storage Unit... Ready to Repair: Lrg. Storage Unit Rating: 1 Time: 26 >>Repair Repairing Lrg. Storage Unit... ETC: 26 03417_ ALERT: Suspicious activity at Repair Station M002. Dispatching Investigation squad. 03437_ G-34 Mercenary destroyed. 03443_ Repair station completes Lrg. Storage Unit repairs. Map ----- +----------------------------------------------------+ | ??????????????????????????????????????????? | | ??????????????????????????????????????????? | | ??????????????????????????????????????????? | | ??????????????????????????????????????????? | | ??????????????????????????????????????????? | | ??????????????????????????????????????????? | | ??????????????????????????????????????????? | | ??????????????????????????????????????????? | | ??????????????????????????????????????????? | | ??????????????????????????????????????????? | | ??????????????????????????????????????????? | | ??????????????? ????????????????????????? | | ??????????????? ????????????????????????? | | ??????????????+ ????????????????????????? | | ??????????????# ????????????????????????? | | ??????????????# ????????????????????????? | | ??????????????# #???????????????????????? | | ??????????????# #???????????????????????? | | ??????????????# #???????????????????????? | | ??????????????# #???????????????????????? | | ??????????????# +???????????????????????? | | ??????????????# ###########?????????????? | | ??????????????# # """ #?????????????? | | ??????????????# # """ "R" #?????????????? | | ??????????????# # """ "!" #?????????????? | | ??????######### # """ !@! #?????????????? | | ??????# # #[ ! #?????????????? | | ??????# # %g= #?????????????? | | ??????# # *#! #?????????????? | | ??????# # # #?????????????? | | ??????# #!* ############????????????? | | ####### ! =#%%* #????????????? | | # # %+ ! < #????????????? | | # # #????????????? | | ! # # #######+####????????????? | | "" # # #???# #????????????? | | "" # # #???# """ #????????????? | | "" ##########%* #???# """ #????????????? | | #????????# #???# """ #????????????? | | * +????????#! #???# #????????????? | | ""% #????????#%= #???# #????????????? | | "" #????????#=% #???########????????????? | | "" #????????#t= #???????????????????????? | | #????????#* #???????????????????????? | | u *#????????# %#???????????????????????? | | "" #????????# #???????????????????????? | | "" %*########## ###########?????????????? | | "" ## a # """ """ #?????????????? | | ## # """ """ #?????????????? | | ## [ """ # """ """ #?????????????? | +----------------------------------------------------+ Best States ------------- Heat Dissipation 42 Energy Generation 14 Energy Capacity 265 Matter Stores 300 Matter Capacity 300 Sight Range 18 Terrain Scan Density 10 Armor Coverage 150 Core Shielding 20 Evasion (%) 40 Targeting Accuracy 6 Recoil Reduction 2 Item Schematics ----------------- Lgt. Treads | -9/Materials | Scanalyzed Shield Generator | -9/Materials | Scanalyzed Visual Processing Unit | -9/Materials | Scanalyzed Signal Interpreter | -9/Materials | Scanalyzed Ion Engine | -9/Materials | Scanalyzed Sml. Laser | -9/Materials | Scanalyzed Datajack | -9/Materials | Scanalyzed Core Shielding | -9/Materials | Scanalyzed Assault Rifle | -9/Materials | Scanalyzed Robot Schematics ------------------ None Fabricated ------------ Nothing Alien Tech Used ----------------- None Achievements -------------- None Challenges ------------ None Game ------ Seed AerolevHelicalLeg Manual? 0 Play Time 00:57:10 Cumulative 32.7 hours Start 2020.02.15 @ 14:28:54 End 2020.02.15 @ 15:22:46 Sessions 1 Manual Loads 0 Difficulty Rogue Special Mode None Game No. 22 Rogue 22 Adventurer 0 Explorer 0 Win Type - Total 0 Types 0/0/0/0/0/0/0 Lore% 20 Gallery% 15 Achievement% 14 Wizard Run 0 Options --------- ASCII 1 Keyboard 0 Movement Mouse Keybinds 0 Fullscreen 2 Font 20/Terminus Map View 66x50 Tactical HUD 1 Map Filters NONE Filters NONE Steam 1 RUN: dd4e3580-37d2-47ad-8374-da47fe2ecece